fUST/lending_fUST_20240924
["ID","MTS","AMOUNT","RATE_DAILY","PERIOD"]
[339052728,1727179850960,-500.0,0.0003041,14]
[339052729,1727179850977,-181.2,0.0003041,7]
[339052730,1727179850992,-500.0,0.0003041,14]
[339052731,1727179851005,-500.0,0.0003041,14]
[339052732,1727179851018,-500.0,0.0003041,14]
[339052733,1727179851033,-500.0,0.0003041,14]
[339052734,1727179851048,-500.0,0.0003041,14]
[339052735,1727179851063,-500.0,0.0003041,14]
[339052736,1727179851077,-591.12,0.0003041,14]
[339052737,1727179851091,-500.0,0.0003041,14]
[339052738,1727179851103,-500.0,0.0003041,14]
[339052739,1727179851115,-151.0,0.0003041,7]
[339052740,1727179851130,-500.0,0.0003041,14]
[339052741,1727179851145,-500.0,0.0003041,14]
[339052742,1727179851159,-500.0,0.0003041,14]
[339052743,1727179851174,-500.0,0.0003041,14]
[339052744,1727179851188,-500.0,0.0003041,14]
[339052745,1727179851202,-535.52,0.0003041,14]
[339052746,1727179851217,-500.0,0.0003041,14]
[339052747,1727179851233,-500.0,0.0003041,14]
[339052748,1727179851246,-506.5479754,0.0003041,14]
[339052749,1727179851261,-500.0,0.0003041,14]
[339052750,1727179851274,-771.02,0.0003041,14]
[339052751,1727179851290,-500.0,0.0003041,14]
[339052752,1727179851304,-500.0,0.0003041,14]
[339052753,1727179851316,-500.0,0.0003041,14]
[339052754,1727179851328,-500.0,0.0003041,14]
[339052755,1727179851354,-290.775625,0.0003041,7]
[339052756,1727179851377,-290.775625,0.0003041,7]
[339052757,1727179851389,-1406.713529,0.0003041,7]
[339052758,1727179851401,-1006.38,0.0003041,14]
[339052759,1727179851413,-564.07,0.0003041,14]
[339052760,1727179851430,-500.0,0.0003041,14]
[339052761,1727179851446,-500.0,0.0003041,14]
[339052762,1727179851459,-500.0,0.0003041,14]
[339052763,1727179851472,-1121.630835,0.0003041,7]
[339052764,1727179851488,-562.62190692,0.0003041,14]
[339052765,1727179851502,-500.0,0.0003041,14]
[339052766,1727179851519,-151.0,0.0003041,7]
[339052767,1727179851533,-225.29853947,0.0003041,14]
[339052768,1727179851546,-500.0,0.0003041,14]
[339052769,1727179851559,-1121.630835,0.0003041,7]
[339052770,1727179851571,-500.0,0.0003041,14]
[339052771,1727179851583,-500.0,0.0003041,14]
[339052772,1727179851596,-151.0,0.0003041,7]
[339052773,1727179851608,-500.0,0.0003041,14]
[339052774,1727179851620,-402.221516,0.0003041,7]
[339052775,1727179851633,-349.992753,0.0003041,7]
[339052776,1727179851645,-515.40177839,0.0003041,14]
[339052777,1727179851657,-500.0,0.0003041,14]
[339052778,1727179851669,-151.0,0.0003041,7]
[339052779,1727179851682,-402.221516,0.0003041,7]
[339052780,1727179851693,-349.992753,0.0003041,7]
[339052781,1727179851705,-325.32244,0.0003041,7]
[339052782,1727179851716,-500.0,0.0003041,14]
[339052783,1727179851728,-500.0,0.0003041,14]
[339052784,1727179851740,-500.0,0.0003041,14]
[339052785,1727179851751,-325.32244,0.0003041,7]
[339052786,1727179851763,-500.0,0.0003041,14]
[339052787,1727179851777,-151.0,0.0003041,7]
[339052788,1727179851789,-151.0,0.0003041,7]
[339052789,1727179851801,-500.0,0.0003041,14]
[339052790,1727179851812,-151.0,0.0003041,7]
[339052791,1727179851825,-151.0,0.0003041,7]
[339052792,1727179851837,-500.0,0.0003041,14]
[339052793,1727179851849,-500.0,0.0003041,14]
[339052794,1727179851860,-500.0,0.0003041,14]
[339052795,1727179851872,-500.0,0.0003041,14]
[339052796,1727179851882,-576.88133479,0.0003041,14]
[339052797,1727179851894,-500.0,0.0003041,14]
[339052798,1727179851905,-500.0,0.0003041,14]
[339052799,1727179851919,-500.0,0.0003041,14]
[339052800,1727179851930,-500.0,0.0003041,14]
[339052801,1727179851941,-589.288088,0.0003041,7]
[339052802,1727179851953,-264.79981192,0.0003041,14]
[339052816,1727180737700,814.2980552,0.0001,9]
[339052817,1727180738466,-2876.87,0.00025,2]
[339052818,1727180738498,-225.666304,0.00026509,2]
[339052819,1727180738541,-213.7525285,0.00026509,2]
[339052820,1727180738653,-129.2891176,0.00026509,2]
[339052821,1727180738675,-165.5027494,0.00026661,2]
[339052822,1727180738787,-48.2497791,0.00026661,2]
[339052823,1727180738810,-166.180777,0.00026835,2]
[339052824,1727180738832,-85.5694439,0.00027256,2]
[339052825,1727180738865,-75.5899991,0.00027256,2]
[339052826,1727180738886,-224.4100009,0.00027397,2]
[339052827,1727180738912,-70.3818661,0.00027397,2]
[339052828,1727180738934,-166.180777,0.00027749,2]
[339052829,1727180738956,-225.666304,0.00027813,2]
[339052830,1727180738977,-300.0,0.00028423,2]
[339052831,1727180738999,-149.13814191,0.00028423,2]
[339052832,1727180739039,-150.86185809,0.00028423,2]
[339052833,1727180739061,-3036.75327502,0.00028424,2]
[339052834,1727180739089,-411.36708901,0.00028449,2]
[339052835,1727180739115,-500.0,0.00028449,2]
[339052836,1727180739137,-288.89357314,0.00028449,2]
[339052837,1727180739165,-10216.30305392,0.0002845,2]
[339052840,1727180828192,-274.81553547,0.00023,2]
[339052841,1727180828216,-147.10046835,0.00026735,5]
[339052842,1727180850102,-7.64195395,0.00026735,5]
[339052843,1727180850123,-200.0,0.00028028,15]
[339052844,1727180850148,-225.666304,0.00028108,2]
[339052845,1727180850179,-300.0,0.00028449,2]
[339052846,1727180850216,-1279.90114398,0.0002845,2]
[339052851,1727180919342,618.78949147,0.00025,120]
[339052853,1727180970082,-288.5746376,0.00024,30]
[339052870,1727181031897,-468.45507827,0.00025,60]
[339052871,1727181031906,-955.46,0.00025,45]
[339052872,1727181031916,-157.70784359,0.000251,10]
[339052873,1727181031925,-166.180777,0.00025532,2]
[339052875,1727181031934,-279.68087054,0.0002661,30]
[339052877,1727181031944,-166.180777,0.00027273,2]
[339052879,1727181031953,-280.052273,0.00027397,2]
[339052881,1727181031962,-314.009032,0.0002743,2]
[339052884,1727181031972,-172.147308,0.00028112,2]
[339052886,1727181031983,-16699.02711084,0.00028386,2]
[339052936,1727181040261,-8200.97288916,0.00028386,2]
[339052937,1727181040272,-548.6,0.00028782,4]
[339052938,1727181040286,-530.0,0.000289,120]
[339052939,1727181040296,-177.469,0.00028926,21]
[339052940,1727181040305,-191.56270701,0.00028926,21]
[339052941,1727181040315,-3000.0,0.00029,70]
[339052942,1727181040324,-500.0,0.00029,10]
[339052943,1727181040333,-500.0,0.00029,8]
[339052944,1727181040343,-166.180777,0.00029013,2]
[339052945,1727181040353,-530.0,0.000291,120]
[339052946,1727181040362,-530.0,0.000293,120]
[339052947,1727181040372,-548.6,0.00029461,4]
[339052948,1727181040381,-530.0,0.000295,120]
[339052949,1727181040391,-306.0,0.00029671,2]
[339052950,1727181040400,-153.0,0.00029671,2]
[339052951,1727181040409,-153.0,0.00029671,2]
[339052952,1727181040418,-209.0432937,0.00029671,2]
[339052953,1727181040428,-209.0432937,0.00029671,2]
[339052954,1727181040438,-209.0432937,0.00029671,2]
[339052955,1727181040447,-247.094737,0.00029671,2]
[339052956,1727181040456,-209.0432937,0.00029671,2]
[339052957,1727181040466,-209.0432937,0.00029671,2]
[339052958,1727181040475,-209.0432937,0.00029671,2]
[339052959,1727181040486,-306.0,0.00029671,2]
[339052960,1727181040496,-530.0,0.000297,120]
[339052961,1727181040505,-171.0,0.0002981,21]
[339052962,1727181040514,-306.0,0.00029829,2]
[339052963,1727181040524,-209.0432937,0.00029829,2]
[339052964,1727181040533,-530.0,0.000299,120]
[339052965,1727181040542,-151.0,0.0003,120]
[339052966,1727181040551,-500.0,0.0003,12]
[339052967,1727181040561,-500.0,0.0003,12]
[339052968,1727181040570,-5000.0,0.0003,2]
[339052969,1727181040580,-632.0,0.0003,2]
[339052970,1727181040590,-388.98910548,0.0003,10]
[339052971,1727181040599,-283.0,0.0003,2]
[339052972,1727181040608,-873.43897344,0.0003,15]
[339052973,1727181040618,-2792.09022402,0.0003,120]
[339052974,1727181040627,-7886.39557253,0.0003,10]
[339052975,1727181040637,-186.33474784,0.0003,7]
[339052976,1727181040646,-206.0,0.0003,2]
[339052977,1727181040655,-211.0,0.0003,2]
[339052978,1727181040665,-5797.43048757,0.00030018,2]
[339052979,1727181040674,-200.0,0.00030019,2]
[339052980,1727181040684,-1000.0,0.00030026,2]
[339052981,1727181040693,-1723.54731741,0.00030036,2]
[339052982,1727181040702,-250.06,0.00030106,3]
[339052983,1727181040712,-208.39,0.00030106,3]
[339052984,1727181040722,-173.66,0.00030106,3]
[339052985,1727181040733,-510.36906359,0.00030115,2]
[339052986,1727181040742,-500.0,0.00030115,2]
[339052987,1727181040751,-263.22027619,0.00030115,2]
[339052988,1727181040761,-500.0,0.00030115,2]
[339052989,1727181040770,-200.81316959,0.00030115,2]
[339052990,1727181040779,-500.0,0.00030115,2]
[339052991,1727181040788,-500.0,0.00030115,2]
[339052992,1727181040798,-500.0,0.00030115,2]
[339052993,1727181040807,-500.0,0.00030115,2]
[339052994,1727181040817,-500.0,0.00030115,2]
[339052995,1727181040826,-500.0,0.00030115,2]
[339052996,1727181040835,-275.17759693,0.00030115,2]
[339052997,1727181040844,-450.0,0.00030115,2]
[339052998,1727181040854,-68034.21214976,0.00030116,4]
[339053029,1727181043110,-289.33223,0.00027,120]
[339053030,1727181043123,-2055.35637752,0.00030116,4]
[339053038,1727181149381,706.29870851,0.0002221,30]
[339053041,1727181441097,25910.0,0.0002,2]
[339053046,1727182025144,-431.45353472,0.00025,30]
[339053047,1727182025166,-500.0,0.00025,30]
[339053048,1727182025187,-562.17362925,0.00025,30]
[339053049,1727182025209,-199.04,0.00025,2]
[339053050,1727182025229,-680.23248559,0.00025248,2]
[339053051,1727182025251,-300.0,0.00025543,2]
[339053052,1727182025273,-300.0,0.00025543,2]
[339053053,1727182025299,-353.61024455,0.00025544,2]
[339053054,1727182025322,-500.0,0.00025544,2]
[339053055,1727182025344,-437.42837394,0.00025544,2]
[339053056,1727182025365,-500.0,0.00025544,2]
[339053057,1727182025386,-500.0,0.00025544,2]
[339053058,1727182025406,-500.0,0.00025544,2]
[339053059,1727182025425,-500.0,0.00025544,2]
[339053060,1727182025448,-500.0,0.00025544,2]
[339053061,1727182025469,-172.8202373,0.00025544,2]
[339053062,1727182025489,-500.0,0.00025544,2]
[339053063,1727182025510,-500.0,0.00025544,2]
[339053064,1727182025532,-500.0,0.00025544,2]
[339053065,1727182025555,-500.0,0.00025544,2]
[339053066,1727182025576,-500.0,0.00025544,2]
[339053067,1727182025597,-7631.64525218,0.00025545,2]
[339053069,1727182038103,-973.29349487,0.00025545,2]
[339053071,1727182051144,-343.06027888,0.00025545,2]
[339053076,1727182167083,-166.666666,0.00025177,2]
[339053077,1727182167106,-300.0,0.00025544,2]
[339053078,1727182167129,-300.0,0.00025544,2]
[339053079,1727182167151,-64.68318698,0.00025545,2]
[339053080,1727182168106,-895.34704086,0.00025545,2]
[339053081,1727182192282,400.0,0.00023,3]
[339053110,1727182232170,-300.0,0.00025544,2]
[339053112,1727182232180,-99.91990201,0.00025544,2]
[339053125,1727182232297,-200.08009799,0.00025544,2]
[339053127,1727182232308,-122.92819798,0.00025545,2]
[339053744,1727182238428,-7237.65299042,0.00025545,2]
[339053908,1727182240115,-7631.38955783,0.00025545,2]
[339053910,1727182240125,-194.068135,0.0002562,2]
[339053912,1727182240136,-3665.9835625,0.00025691,2]
[339053914,1727182240147,-264.4424824,0.00025718,2]
[339053915,1727182240156,-167.944176,0.00025849,2]
[339053916,1727182240165,-167.944176,0.00025984,2]
[339053917,1727182240175,-167.944176,0.00026118,2]
[339053918,1727182240184,-926.915654,0.00026177,2]
[339053919,1727182240193,-167.944176,0.00026253,2]
[339053920,1727182240202,-166.666666,0.00026321,2]
[339053921,1727182240212,-167.944176,0.00026388,2]
[339053922,1727182240221,-169.461173,0.0002652,2]
[339053923,1727182240230,-630.3133597,0.00026522,2]
[339053924,1727182240240,-167.944176,0.00026523,2]
[339053925,1727182240249,-167.944176,0.00026657,2]
[339053926,1727182240258,-167.944176,0.00026792,2]
[339053927,1727182240268,-926.915654,0.00026862,2]
[339053928,1727182240277,-167.944176,0.00026927,2]
[339053929,1727182240286,-167.944176,0.00027061,2]
[339053930,1727182240295,-167.944176,0.00027196,2]
[339053931,1727182240305,-400.0,0.00027397,60]
[339053932,1727182240315,-266.049659,0.00027397,2]
[339053933,1727182240325,-166.666666,0.00027465,2]
[339053934,1727182240335,-926.915654,0.00027547,2]
[339053935,1727182240345,-420.0,0.00027658,2]
[339053937,1727182240354,-420.0,0.00028099,2]
[339053938,1727182240365,-500.0,0.00028219,14]
[339053939,1727182240375,-500.0,0.00028219,14]
[339053940,1727182240384,-500.0,0.00028219,14]
[339053941,1727182240394,-500.0,0.00028219,14]
[339053942,1727182240404,-500.0,0.00028219,14]
[339053943,1727182240413,-500.0,0.00028219,14]
[339053944,1727182240423,-500.0,0.00028219,14]
[339053945,1727182240432,-500.0,0.00028219,14]
[339053946,1727182240442,-500.0,0.00028219,14]
[339053947,1727182240452,-500.0,0.00028219,14]
[339053948,1727182240461,-500.0,0.00028219,14]
[339053949,1727182240471,-500.0,0.00028219,14]
[339053950,1727182240480,-500.0,0.00028219,14]
[339053951,1727182240489,-500.0,0.00028219,14]
[339053952,1727182240498,-500.0,0.00028219,14]
[339053953,1727182240507,-500.0,0.00028219,14]
[339053954,1727182240516,-500.0,0.00028219,14]
[339053955,1727182240525,-500.0,0.00028219,14]
[339053956,1727182240533,-174.55574162,0.00028219,14]
[339053957,1727182240542,-166.666666,0.00028609,2]
[339053958,1727182240551,-457.1,0.00028761,4]
[339053959,1727182240560,-430.0,0.000289,120]
[339053961,1727182240570,-177.47,0.00028919,21]
[339053963,1727182240713,-430.0,0.000291,120]
[339053965,1727182240722,-430.0,0.000293,120]
[339053967,1727182240732,-457.1,0.00029441,4]
[339053969,1727182240741,-430.0,0.000295,120]
[339053971,1727182240750,-153.0,0.00029534,2]
[339053973,1727182240759,-153.0,0.00029534,2]
[339053975,1727182240769,-153.0,0.00029534,2]
[339053977,1727182240778,-153.0,0.00029534,2]
[339053979,1727182240787,-5797.43048757,0.00029684,2]
[339053981,1727182240796,-430.0,0.000297,120]
[339053982,1727182240805,-430.0,0.000299,120]
[339053983,1727182240813,-153.0,0.00029945,2]
[339053984,1727182240823,-153.0,0.00029945,2]
[339053985,1727182240831,-355.0,0.00029946,2]
[339053986,1727182240841,-821.5839595,0.0003,120]
[339053988,1727182240851,-150.0,0.0003,120]
[339053990,1727182240862,-601.0,0.0003,2]
[339053992,1727182240872,-248.0,0.0003,2]
[339053993,1727182240881,-1209.94331416,0.0003,3]
[339053995,1727182240890,-274.0,0.0003,2]
[339053997,1727182240899,-2000.0,0.0003,2]
[339053999,1727182240908,-185.0,0.0003,2]
[339054001,1727182240918,-1000.0,0.00030036,2]
[339054003,1727182240927,-172.73759112,0.00030036,7]
[339054005,1727182240936,-1671.78685928,0.00030036,120]
[339054007,1727182240945,-1598.1762789,0.00030036,2]
[339054009,1727182240954,-3146.94989916,0.00030095,4]
[339054011,1727182240963,-9440.84969748,0.00030095,4]
[339054013,1727182240973,-150.112237,0.000301,9]
[339054015,1727182240983,-357.25834451,0.00030105,2]
[339054017,1727182240993,-500.0,0.00030105,2]
[339054019,1727182241003,-184.25419334,0.00030105,2]
[339054021,1727182241013,-500.0,0.00030105,2]
[339054023,1727182241022,-500.0,0.00030105,2]
[339054025,1727182241031,-417.05823802,0.00030105,2]
[339054028,1727182241042,-500.0,0.00030105,2]
[339054030,1727182241053,-500.0,0.00030105,2]
[339054032,1727182241063,-500.0,0.00030105,2]
[339054034,1727182241072,-500.0,0.00030105,2]
[339054036,1727182241082,-500.0,0.00030105,2]
[339054038,1727182241091,-500.0,0.00030105,2]
[339054040,1727182241100,-500.0,0.00030105,2]
[339054042,1727182241110,-868.3,0.00030106,3]
[339054044,1727182241119,-6293.89979832,0.00030106,4]
[339054046,1727182241129,-3146.94989916,0.00030115,4]
[339054048,1727182241140,-6293.89979832,0.00030115,4]
[339054050,1727182241150,-25175.5991933,0.00030116,4]
[339054052,1727182241159,-272.4107815,0.00030116,2]
[339054053,1727182241167,-457.1,0.00030122,5]
[339054055,1727182241178,-151.0,0.00030125,7]
[339054057,1727182241187,-589.288088,0.00030125,7]
[339054059,1727182241196,-589.288088,0.00030125,7]
[339054061,1727182241205,-381.201129,0.00030125,7]
[339054062,1727182241214,-381.201129,0.00030125,7]
[339054064,1727182241225,-154.219427,0.00030125,7]
[339054066,1727182241234,-154.219427,0.00030125,7]
[339054068,1727182241243,-151.0,0.00030125,7]
[339054070,1727182241253,-151.0,0.00030125,7]
[339054072,1727182241262,-1016.778152,0.00030125,7]
[339054074,1727182241271,-1016.778152,0.00030125,7]
[339054076,1727182241282,-151.0,0.00030125,7]
[339054078,1727182241291,-151.0,0.00030125,7]
[339054079,1727182241300,-214.416101,0.00030125,7]
[339054081,1727182241309,-214.416101,0.00030125,7]
[339054083,1727182241318,-151.0,0.00030125,7]
[339054086,1727182241329,-151.0,0.00030125,7]
[339054088,1727182241338,-151.0,0.00030125,7]
[339054090,1727182241347,-151.0,0.00030125,7]
[339054091,1727182241356,-413.719161,0.00030125,7]
[339054093,1727182241374,-413.719161,0.00030125,7]
[339054095,1727182241383,-392.746401,0.00030125,7]
[339054097,1727182241392,-392.746401,0.00030125,7]
[339054099,1727182241401,-890.915091,0.00030125,7]
[339054101,1727182241410,-668.196882,0.00030125,7]
[339054103,1727182241419,-890.915091,0.00030125,7]
[339054105,1727182241428,-668.196882,0.00030125,7]
[339054107,1727182241436,-957.201374,0.00030125,7]
[339054108,1727182241447,-623.872985,0.00030125,7]
[339054110,1727182241457,-957.201374,0.00030125,7]
[339054111,1727182241466,-623.872985,0.00030125,7]
[339054112,1727182241475,-151.0,0.00030125,7]
[339054113,1727182241485,-3387.181448,0.00030125,7]
[339054114,1727182241494,-3387.181448,0.00030125,7]
[339054115,1727182241503,-162.13509,0.00030125,7]
[339054116,1727182241513,-162.13509,0.00030125,7]
[339054117,1727182241522,-151.0,0.00030125,7]
[339054119,1727182241531,-151.0,0.00030125,7]
[339054121,1727182241540,-162.13509,0.00030125,7]
[339054123,1727182241550,-162.13509,0.00030125,7]
[339054125,1727182241559,-151.0,0.00030125,7]
[339054127,1727182241569,-172.516097,0.00030125,7]
[339054129,1727182241578,-151.0,0.00030125,7]
[339054131,1727182241587,-151.0,0.00030125,7]
[339054133,1727182241596,-151.0,0.00030125,7]
[339054135,1727182241608,-151.0,0.00030125,7]
[339054137,1727182241617,-157.97917,0.00030125,7]
[339054139,1727182241627,-864.361084,0.00030125,7]
[339054141,1727182241635,-864.361084,0.00030125,7]
[339054143,1727182241644,-151.0,0.00030125,7]
[339054145,1727182241653,-151.0,0.00030125,7]
[339054147,1727182241663,-1285.108703,0.00030125,7]
[339054149,1727182241672,-1285.108703,0.00030125,7]
[339054151,1727182241681,-1285.108703,0.00030125,7]
[339054153,1727182241690,-1285.108703,0.00030125,7]
[339054155,1727182241699,-165.127171,0.00030125,7]
[339054157,1727182241709,-165.127171,0.00030125,7]
[339054159,1727182241718,-165.127171,0.00030125,7]
[339054161,1727182241727,-165.127171,0.00030125,7]
[339054163,1727182241736,-2256.400956,0.00030125,7]
[339054165,1727182241745,-2256.400956,0.00030125,7]
[339054167,1727182241754,-2256.400956,0.00030125,7]
[339054169,1727182241763,-2256.400956,0.00030125,7]
[339054171,1727182241773,-181.2,0.00030125,7]
[339054172,1727182241782,-181.2,0.00030125,7]
[339054173,1727182241791,-15298.95870276,0.00030126,9]
[339054175,1727182241800,-16970.83898786,0.00030126,9]
[339054177,1727182241809,-9440.84969748,0.00030126,4]
[339054179,1727182241821,-151.0,0.00030126,7]
[339054181,1727182241832,-151.0,0.00030126,7]
[339054183,1727182241843,-295.636234,0.00030126,7]
[339054184,1727182241853,-295.636234,0.00030126,7]
[339054186,1727182241873,-349.992753,0.00030126,7]
[339054187,1727182241882,-151.0,0.00030126,7]
[339054188,1727182241891,-231.046547,0.00030126,7]
[339054189,1727182241900,-349.992753,0.00030126,7]
[339054190,1727182241909,-494.009963,0.00030126,7]
[339054191,1727182241919,-494.009963,0.00030126,7]
[339054192,1727182241928,-151.0,0.00030126,7]
[339054193,1727182241940,-151.0,0.00030126,7]
[339054194,1727182241951,-151.0,0.00030126,7]
[339054195,1727182241962,-153.056031,0.00030126,7]
[339054196,1727182241971,-151.0,0.00030126,7]
[339054197,1727182241981,-151.0,0.00030126,7]
[339054198,1727182241990,-151.0,0.00030126,7]
[339054199,1727182241999,-151.0,0.00030126,7]
[339054200,1727182242008,-151.0,0.00030126,7]
[339054201,1727182242017,-151.0,0.00030126,7]
[339054202,1727182242026,-589.288088,0.00030126,7]
[339054203,1727182242037,-589.288088,0.00030126,7]
[339054204,1727182242047,-589.288088,0.00030126,7]
[339054205,1727182242057,-589.288088,0.00030126,7]
[339054206,1727182242067,-381.201129,0.00030126,7]
[339054207,1727182242076,-381.201129,0.00030126,7]
[339054208,1727182242085,-381.201129,0.00030126,7]
[339054209,1727182242094,-381.201129,0.00030126,7]
[339054210,1727182242103,-154.219427,0.00030126,7]
[339054211,1727182242116,-154.219427,0.00030126,7]
[339054212,1727182242126,-154.219427,0.00030126,7]
[339054213,1727182242137,-154.219427,0.00030126,7]
[339054214,1727182242148,-151.0,0.00030126,7]
[339054215,1727182242161,-151.0,0.00030126,7]
[339054216,1727182242170,-151.0,0.00030126,7]
[339054217,1727182242181,-1016.778152,0.00030126,7]
[339054218,1727182242190,-1016.778152,0.00030126,7]
[339054219,1727182242200,-151.0,0.00030126,7]
[339054220,1727182242210,-1016.778152,0.00030126,7]
[339054221,1727182242222,-1016.778152,0.00030126,7]
[339054222,1727182242234,-151.0,0.00030126,7]
[339054223,1727182242243,-151.0,0.00030126,7]
[339054224,1727182242254,-151.0,0.00030126,7]
[339054225,1727182242263,-151.0,0.00030126,7]
[339054226,1727182242273,-214.416101,0.00030126,7]
[339054227,1727182242282,-214.416101,0.00030126,7]
[339054228,1727182242292,-214.416101,0.00030126,7]
[339054229,1727182242302,-214.416101,0.00030126,7]
[339054230,1727182242311,-151.0,0.00030126,7]
[339054231,1727182242320,-696.890037,0.00030126,60]
[339054232,1727182242330,-151.0,0.00030126,7]
[339054233,1727182242339,-151.0,0.00030126,7]
[339054234,1727182242348,-151.0,0.00030126,7]
[339054235,1727182242359,-151.0,0.00030126,7]
[339054236,1727182242368,-151.0,0.00030126,7]
[339054237,1727182242379,-203.694936,0.00030126,7]
[339054238,1727182242391,-413.719161,0.00030126,7]
[339054239,1727182242402,-413.719161,0.00030126,7]
[339054240,1727182242413,-413.719161,0.00030126,7]
[339054241,1727182242424,-413.719161,0.00030126,7]
[339054242,1727182242434,-392.746401,0.00030126,7]
[339054243,1727182242444,-392.746401,0.00030126,7]
[339054244,1727182242455,-392.746401,0.00030126,7]
[339054245,1727182242466,-392.746401,0.00030126,7]
[339054246,1727182242475,-890.915091,0.00030126,7]
[339054247,1727182242484,-576.89854334,0.00030126,7]
[339054261,1727182246095,-233.86746,0.00027,120]
[339054262,1727182246105,-153.0,0.00029534,2]
[339054263,1727182246115,-314.01654766,0.00030126,7]
[339054264,1727182246126,-668.196882,0.00030126,7]
[339054265,1727182246139,-668.196882,0.00030126,7]
[339054266,1727182246151,-890.915091,0.00030126,7]
[339054267,1727182246161,-890.915091,0.00030126,7]
[339054268,1727182246170,-668.196882,0.00030126,7]
[339054269,1727182246179,-668.196882,0.00030126,7]
[339054270,1727182246189,-957.201374,0.00030126,7]
[339054271,1727182246198,-957.201374,0.00030126,7]
[339054272,1727182246207,-623.872985,0.00030126,7]
[339054273,1727182246218,-623.872985,0.00030126,7]
[339054274,1727182246228,-957.201374,0.00030126,7]
[339054275,1727182246238,-957.201374,0.00030126,7]
[339054276,1727182246248,-623.872985,0.00030126,7]
[339054277,1727182246258,-623.872985,0.00030126,7]
[339054278,1727182246268,-151.0,0.00030126,7]
[339054279,1727182246277,-151.0,0.00030126,7]
[339054280,1727182246286,-3387.181448,0.00030126,7]
[339054281,1727182246295,-3387.181448,0.00030126,7]
[339054282,1727182246305,-3387.181448,0.00030126,7]
[339054283,1727182246314,-3387.181448,0.00030126,7]
[339054284,1727182246324,-162.13509,0.00030126,7]
[339054285,1727182246332,-162.13509,0.00030126,7]
[339054286,1727182246342,-151.0,0.00030126,7]
[339054287,1727182246352,-151.0,0.00030126,7]
[339054288,1727182246362,-162.13509,0.00030126,7]
[339054289,1727182246371,-162.13509,0.00030126,7]
[339054290,1727182246380,-151.0,0.00030126,7]
[339054291,1727182246389,-151.0,0.00030126,7]
[339054292,1727182246398,-151.0,0.00030126,7]
[339054293,1727182246408,-151.0,0.00030126,7]
[339054294,1727182246417,-864.361084,0.00030126,7]
[339054295,1727182246427,-864.361084,0.00030126,7]
[339054296,1727182246436,-864.361084,0.00030126,7]
[339054297,1727182246445,-864.361084,0.00030126,7]
[339054298,1727182246454,-151.0,0.00030126,7]
[339054299,1727182246463,-151.0,0.00030126,7]
[339054300,1727182246475,-1285.108703,0.00030126,7]
[339054301,1727182246484,-1285.108703,0.00030126,7]
[339054302,1727182246495,-1285.108703,0.00030126,7]
[339054303,1727182246504,-1285.108703,0.00030126,7]
[339054304,1727182246516,-165.127171,0.00030126,7]
[339054305,1727182246525,-165.127171,0.00030126,7]
[339054306,1727182246534,-165.127171,0.00030126,7]
[339054307,1727182246544,-165.127171,0.00030126,7]
[339054308,1727182246555,-2256.400956,0.00030126,7]
[339054309,1727182246565,-2256.400956,0.00030126,7]
[339054310,1727182246575,-2256.400956,0.00030126,7]